fUSD/lending_fUSD_20260404
["ID","MTS","AMOUNT","RATE_DAILY","PERIOD"]
[419737957,1775345544106,-1112.98038209,0.00046853,30]
[419737958,1775345544131,-279.41571054,0.00046853,120]
[419737959,1775345544157,-490.47816949,0.00046853,120]
[419737960,1775345544183,-1219.43778089,0.00046853,120]
[419737961,1775345544211,-2646.60087932,0.00046853,120]
[419737962,1775345544236,-1239.33085945,0.00046853,120]
[419737963,1775345544261,-211.22688936,0.00046853,120]
[419737964,1775345544286,-486.42094767,0.00046853,120]
[419737965,1775345544312,-597.81636786,0.00046853,120]
[419737966,1775345544336,-502.85774905,0.00046853,30]
[419737967,1775345544360,-500.0,0.00046853,120]
[419737968,1775345544386,-2081.5079141,0.00046853,120]
[419737969,1775345544412,-3202.42978148,0.00046853,120]
[419737970,1775345544437,-174.43506002,0.00046853,30]
[419737971,1775345544463,-987.63276487,0.00046853,120]
[419737972,1775345544487,-1990.65260298,0.00046853,120]
[419737973,1775345544511,-284.3250189,0.00046853,120]
[419737974,1775345544535,-1202.99949507,0.00046853,30]
[419737975,1775345544559,-3116.19663963,0.00046853,30]
[419737976,1775345544583,-202.79342692,0.00046853,120]
[419737977,1775345544606,-267.92141931,0.00046853,120]
[419737978,1775345544631,-2577.0731285,0.00046853,120]
[419737979,1775345544656,-490.16965219,0.00046853,120]
[419737980,1775345544684,-226.94740135,0.00046853,120]
[419737981,1775345544712,-2132.39432672,0.00046853,120]
[419737982,1775345544738,-158.51032466,0.00046853,120]
[419737983,1775345544766,-1378.71891602,0.00046853,30]
[419737984,1775345544794,-521.96153309,0.00046853,60]
[419737985,1775345544818,-1599.7120617,0.00046853,120]
[419737986,1775345544843,-525.15737424,0.00046853,60]
[419737987,1775345544869,-813.65219669,0.00046853,30]
[419737988,1775345544896,-702.21543735,0.00046853,120]
[419737989,1775345544923,-572.44188219,0.00046853,120]
[419737990,1775345544947,-187.90495677,0.00046853,120]
[419737991,1775345544972,-446.62038542,0.00046853,90]
[419737992,1775345544997,-205.68668352,0.00046853,120]
[419737993,1775345545022,-696.17493789,0.00046853,30]
[419737994,1775345545047,-483.47007681,0.00046853,120]
[419737995,1775345545073,-1357.46544867,0.00046853,30]
[419737996,1775345545100,-500.56360477,0.00046853,120]
[419737997,1775345545127,-549.0,0.00046853,30]
[419737998,1775345545154,-1003.51011673,0.00046853,120]
[419737999,1775345545182,-1003.52434507,0.00046853,120]
[419738000,1775345545208,-393.0537478,0.00046853,120]
[419738001,1775345545233,-176.47702505,0.00046853,30]
[419738002,1775345545259,-552.0,0.00046853,30]
[419738003,1775345545292,-241.23404412,0.00046853,120]
[419738004,1775345545320,-50000.0,0.00046853,43]
[419738005,1775345545347,-50000.0,0.00046853,45]
[419738006,1775345545375,-50000.0,0.00046853,46]
[419738007,1775345545402,-50000.0,0.00046853,47]
[419738008,1775345545430,-50000.0,0.00046853,48]
[419738009,1775345545460,-50000.0,0.00046853,49]
[419738010,1775345545489,-50000.0,0.00046853,50]
[419738011,1775345545517,-50000.0,0.00046853,51]
[419738012,1775345545542,-1750.7837769,0.00046853,30]
[419738013,1775345545566,-15026.177594,0.00046853,30]
[419738014,1775345545590,-12034.50695939,0.00046853,30]
[419738015,1775345545616,-1664943.07253242,0.00046853,30]
[419738016,1775345545640,-10958.82567157,0.00046853,30]
[419738017,1775345545665,-36080.96940219,0.00046853,30]
[419738018,1775345545690,-32038.13837619,0.00046853,30]
[419738019,1775345545718,-5742425.88991416,0.00046853,30]
[419738020,1775345562260,-9000000.0,0.00046853,30]
[419738021,1775345566178,-9000000.0,0.00046853,30]
[419738022,1775345570015,-9000000.0,0.00046853,30]
[419738023,1775345574051,-9000000.0,0.00046853,30]
[419738024,1775345578403,-9000000.0,0.00046853,30]
[419738025,1775345587226,-8893362.11336256,0.00046853,30]
[419738026,1775345587252,-16388.27654251,0.00046853,30]
[419738027,1775345587277,-50000.0,0.00046853,30]
[419738028,1775345587303,-14162.93641607,0.00046853,30]
[419738029,1775345587330,-26086.67367886,0.00046853,30]
[419738030,1775345649234,552.0,0.0001155,10]
[419738041,1775345892880,-7922.18100049,0.00046826,30]
[419738042,1775345892906,-15580.97815526,0.00046826,30]
[419738043,1775345892932,-29187.14371752,0.00046826,30]
[419738044,1775345892957,-42767.15079044,0.00046826,30]
[419738045,1775345892981,-25997.46855913,0.00046826,30]
[419738046,1775345893005,-61613.41660285,0.00046826,30]
[419738047,1775345893030,-7829.10472198,0.00046826,30]
[419738048,1775345893055,-4016337.68038467,0.00046826,30]
[419738049,1775345893080,-105976.50622613,0.00046826,30]
[419738050,1775345893105,-50000.0,0.00046826,120]
[419738051,1775345893130,-50000.0,0.00046826,120]
[419738052,1775345893160,-1000000.0,0.00046826,110]
[419738053,1775345893185,-14525.03487,0.00046826,120]
[419738054,1775345893215,-207077.03373885,0.00046826,30]
[419738055,1775345893635,-328.12834389,0.00046826,30]
[419738056,1775345893661,-645.12421674,0.00046826,120]
[419738057,1775345893687,-900.0,0.00046826,120]
[419738058,1775345893711,-244.1,0.00046826,120]
[419738059,1775345893735,-200.0,0.00046826,120]
[419738060,1775345893759,-200.0,0.00046826,120]
[419738061,1775345893791,-200.0,0.00046826,120]
[419738062,1775345893815,-200.0,0.00046826,120]
[419738063,1775345893840,-200.0,0.00046826,120]
[419738064,1775345893865,-200.0,0.00046826,120]
[419738065,1775345893890,-200.0,0.00046826,120]
[419738066,1775345893915,-200.0,0.00046826,120]
[419738067,1775345893940,-200.0,0.00046826,120]
[419738068,1775345893965,-200.0,0.00046826,120]
[419738069,1775345893990,-598502.0,0.00046826,120]
[419738070,1775345894016,-5000.0,0.00046826,120]
[419738071,1775345894041,-2017.0,0.00046826,120]
[419738072,1775345894067,-182.5879354,0.00046826,120]
[419738073,1775345894091,-10804.30506103,0.00046826,120]
[419738074,1775345894116,-2200.0,0.00046826,60]
[419738075,1775345894141,-221.67887966,0.00046826,120]
[419738076,1775345894166,-202.2284796,0.00046826,120]
[419738077,1775345894191,-1695.77298251,0.00046826,120]
[419738078,1775345894217,-286.3594755,0.00046826,60]
[419738079,1775345894245,-1000000.0,0.00046826,120]
[419738080,1775345894273,-743803.0,0.00046826,65]
[419738081,1775345894296,-2500.0,0.00046826,120]
[419738082,1775345894321,-2500.0,0.00046826,120]
[419738083,1775345894345,-436.7077296,0.00046826,120]
[419738084,1775345894370,-302.0,0.00046826,120]
[419738085,1775345894393,-473.81457786,0.00046826,120]
[419738086,1775345894418,-153.93,0.00046826,30]
[419738087,1775345894444,-4905.78389974,0.00046826,120]
[419738088,1775345894468,-1767.23265398,0.00046826,60]
[419738089,1775345894493,-328.27301022,0.00046826,120]
[419738090,1775345894517,-594.73467604,0.00046826,120]
[419738091,1775345894540,-748.12585171,0.00046826,120]
[419738092,1775345894563,-341.23221118,0.00046826,120]
[419738093,1775345894586,-342.83499562,0.00046826,120]
[419738094,1775345894610,-936.45258827,0.00046826,120]
[419738095,1775345894634,-544.00496595,0.00046826,120]
[419738096,1775345894658,-1755.50119751,0.00046826,120]
[419738097,1775345894682,-809.25417514,0.00046826,120]
[419738098,1775345894706,-300.01889314,0.00046826,120]
[419738099,1775345894729,-441.06132384,0.00046826,120]
[419738100,1775345894754,-5472.22013225,0.00046826,60]
[419738101,1775345894779,-151.77155984,0.00046826,120]
[419738102,1775345894804,-11553.49273675,0.00046826,90]
[419738103,1775345894829,-183.85300841,0.00046826,120]
[419738104,1775345894855,-152.95009167,0.00046826,30]
[419738105,1775345894880,-10839.76313222,0.00046826,30]
[419738106,1775345894905,-1000.0,0.00046826,120]
[419738107,1775345894929,-1000.0,0.00046826,120]
[419738108,1775345894956,-220747.62245009,0.00046826,120]
[419738109,1775345894980,-2000.0,0.00046826,120]
[419738110,1775345895004,-2000.0,0.00046826,120]
[419738111,1775345895028,-1000.0,0.00046826,30]
[419738112,1775345895053,-500.0,0.00046826,30]
[419738113,1775345895079,-750.79744055,0.00046826,120]
[419738114,1775345895104,-943.35559875,0.00046826,30]
[419738115,1775345895131,-513998.98,0.00046826,120]
[419738116,1775345895155,-1900.71181269,0.00046826,30]
[419738117,1775345895180,-2301.077665,0.00046826,90]
[419738118,1775345895207,-8250.28,0.00046826,120]
[419738119,1775345895232,-200.0,0.00046826,120]
[419738120,1775345895256,-200.0,0.00046826,120]
[419738121,1775345895283,-200.0,0.00046826,120]
[419738122,1775345895307,-200.0,0.00046826,120]
[419738123,1775345895330,-1612.12648078,0.00046826,120]
[419738124,1775345895354,-6000.0,0.00046826,30]
[419738125,1775345895378,-2049.56,0.00046826,120]
[419738126,1775345895401,-427.917997,0.00046826,120]
[419738127,1775345895425,-298.0,0.00046826,120]
[419738128,1775345895449,-180038.57300255,0.00046826,120]
[419738129,1775345900295,-820302.42699745,0.00046826,120]
[419738130,1775345900321,-1652.91642652,0.00046826,30]
[419738131,1775345900345,-2923.57981162,0.00046826,62]
[419738132,1775345900370,-3000.0,0.00046826,30]
[419738133,1775345900395,-603.081926,0.00046826,120]
[419738134,1775345900419,-849.3224748,0.00046826,120]
[419738135,1775345900442,-500.0,0.00046826,120]
[419738136,1775345900465,-500.0,0.00046826,120]
[419738137,1775345900488,-500.0,0.00046826,120]
[419738138,1775345900512,-500.0,0.00046826,120]
[419738139,1775345900535,-150.0,0.00046826,31]
[419738140,1775345900559,-8168518.67236361,0.00046826,30]
[419738141,1775345904672,-9000000.0,0.00046826,30]
[419738142,1775345908857,-9000000.0,0.00046826,30]
[419738143,1775345911854,-9000000.0,0.00046826,30]
[419738144,1775345915383,-9000000.0,0.00046826,30]
[419738145,1775345918172,-9000000.0,0.00046826,30]
[419738146,1775345921613,-9000000.0,0.00046826,30]
[419738147,1775345924408,-9000000.0,0.00046826,30]
[419738148,1775345927580,-6612580.84791541,0.00046826,30]
[419738149,1775345927606,-600.0,0.00046826,120]
[419738150,1775345927630,-1250.0,0.00046826,120]
[419738151,1775345927654,-1250.0,0.00046826,120]
[419738152,1775345927678,-2353.0,0.00046826,120]
[419738153,1775345927702,-30000.0,0.00046826,120]
[419738154,1775345927729,-5000.0,0.00046826,120]
[419738155,1775345927754,-2660.35,0.00046826,30]
[419738156,1775345927778,-42644.56013905,0.00046826,120]
[419738157,1775345927802,-59364.50948607,0.00046826,120]
[419738158,1775345927826,-21329.50448944,0.00046826,120]
[419738159,1775345927850,-9754.8776087,0.00046826,120]
[419738160,1775345927874,-2917.848955,0.00046826,120]
[419738161,1775345927899,-588.73740142,0.00046826,60]
[419738162,1775345927923,-12000.0,0.00046826,120]
[419738163,1775345927951,-50000.0,0.00046826,52]
[419738164,1775345927977,-603.60909375,0.00046826,120]
[419738165,1775345928003,-5000.0,0.00046826,120]
[419738166,1775345928028,-1007.38486758,0.00046826,30]
[419738167,1775345928053,-477315.0,0.00046826,60]
[419738168,1775345928078,-49618.74,0.00046826,120]
[419738169,1775345928102,-68726.27014373,0.00046826,30]
[419738170,1775345928130,-1000000.0,0.00046826,120]
[419738171,1775345928155,-161.17,0.00046826,120]
[419738172,1775345928180,-161.17,0.00046826,120]
[419738173,1775345928203,-161.17,0.00046826,120]
[419738174,1775345928228,-161.17,0.00046826,120]
[419738175,1775345928252,-161.17,0.00046826,120]
[419738176,1775345928276,-161.17,0.00046826,120]
[419738177,1775345928303,-161.17,0.00046826,120]
[419738178,1775345928328,-161.17,0.00046826,120]
[419738179,1775345928352,-161.17,0.00046826,120]
[419738180,1775345928377,-161.17,0.00046826,120]
[419738181,1775345928401,-161.17,0.00046826,120]
[419738182,1775345928426,-161.17,0.00046826,120]
[419738183,1775345928451,-161.23,0.00046826,120]
[419738184,1775345928476,-541339.48989985,0.00046826,30]
[419738185,1775345932791,-6834482.65222886,0.00046826,30]
[419738186,1775345932817,-2000.0,0.00046826,120]
[419738187,1775345932843,-2100.0,0.00046826,120]
[419738188,1775345932869,-1880.0,0.00046826,120]
[419738189,1775345932895,-2000.0,0.00046826,120]
[419738190,1775345932919,-1350.0,0.00046826,120]
[419738191,1775345932945,-1285.0,0.00046826,120]
[419738192,1775345932971,-2000.0,0.00046826,120]
[419738193,1775345932999,-2100.0,0.00046826,120]
[419738194,1775345933024,-3800.0,0.00046826,120]
[419738195,1775345933050,-2580.0,0.00046826,120]
[419738196,1775345933074,-400.0,0.00046826,30]
[419738197,1775345933100,-400.0,0.00046826,30]
[419738198,1775345933126,-400.0,0.00046826,30]
[419738199,1775345933150,-400.0,0.00046826,30]
[419738200,1775345933174,-400.0,0.00046826,30]
[419738201,1775345933199,-400.0,0.00046826,30]
[419738202,1775345933223,-400.0,0.00046826,30]
[419738203,1775345933247,-400.0,0.00046826,30]
[419738204,1775345933271,-400.0,0.00046826,30]
[419738205,1775345933296,-400.0,0.00046826,30]
[419738206,1775345933322,-400.0,0.00046826,30]
[419738207,1775345933348,-216.75674819,0.00046826,30]
[419738208,1775345933375,-3580.0,0.00046826,120]
[419738209,1775345933399,-1982.9,0.00046826,120]
[419738210,1775345933425,-1837552.96,0.00046826,80]
[419738211,1775345933450,-210.0,0.00046826,120]
[419738212,1775345933475,-25807.11495741,0.00046826,120]
[419738213,1775345933500,-157026.4608824,0.00046826,120]
[419738214,1775345933525,-1000.0,0.00046826,31]
[419738215,1775345933550,-601.64000755,0.00046826,31]
[419738216,1775345933576,-112044.51517559,0.00046826,120]
[419738217,1775345938224,-667607.48482441,0.00046826,120]
[419738218,1775345938248,-31800.0,0.00046826,120]
[419738219,1775345938272,-1799.999999,0.00046826,31]
[419738220,1775345938297,-5000.0,0.00046826,120]
[419738221,1775345938322,-359.60814467,0.00046826,30]
[419738222,1775345938347,-126467.0,0.00046826,120]
[419738223,1775345938374,-1200.0,0.00046826,120]
[419738224,1775345938401,-1200.0,0.00046826,120]
[419738225,1775345938426,-1000.0,0.00046826,120]
[419738226,1775345938450,-1000.0,0.00046826,120]
[419738227,1775345938474,-1000.0,0.00046826,120]
[419738228,1775345938498,-1000.0,0.00046826,120]
[419738229,1775345938522,-1564.60168866,0.00046826,60]
[419738230,1775345938549,-50000.0,0.00046826,53]
[419738231,1775345938574,-857.37,0.00046826,120]
[419738232,1775345938598,-857.37,0.00046826,120]
[419738233,1775345938624,-857.37,0.00046826,120]
[419738234,1775345938650,-857.37,0.00046826,120]
[419738235,1775345938675,-857.36,0.00046826,120]
[419738236,1775345938699,-857.36,0.00046826,120]
[419738237,1775345938724,-857.36,0.00046826,120]
[419738238,1775345938747,-57444.0,0.00046826,30]
[419738239,1775345938772,-154.82727467,0.00046826,30]
[419738240,1775345938796,-15698.46391837,0.00046826,60]
[419738241,1775345938820,-13189.17576968,0.00046826,60]
[419738242,1775345938844,-670.68185053,0.00046826,120]
[419738243,1775345938867,-51000.0,0.00046826,30]
[419738244,1775345938891,-28000.0,0.00046826,30]
[419738245,1775345938915,-50000.0,0.00046826,30]
[419738246,1775345938940,-526.14745044,0.00046826,120]
[419738247,1775345938964,-305958.42,0.00046826,30]
[419738248,1775345938988,-21349.3872497,0.00046826,30]
[419738249,1775345939013,-4495428.88152359,0.00046826,30]
[419738250,1775345939038,-1002413.85378936,0.00046826,30]
[419738251,1775345939067,-6960.19338946,0.00046826,30]
[419738252,1775345939091,-1007222.27029212,0.00046826,30]
[419738253,1775345939117,-6587.15418142,0.00046826,30]
[419738254,1775345939142,-8383.84261691,0.00046826,30]
[419738255,1775345939165,-5943.24439974,0.00046826,30]
[419738256,1775345939190,-20802.00034731,0.00046826,120]
[419738257,1775345939215,-9251.05019443,0.00046826,30]
[419738258,1775345939238,-64835.96455341,0.00046826,30]
[419738259,1775345939266,-91377.80972209,0.00046826,30]
[419738260,1775345939290,-11907.80650366,0.00046826,30]
[419738261,1775345939315,-25044.59509183,0.00046826,30]
[419738262,1775345939339,-20000.0,0.00046826,30]
[419738263,1775345939362,-782849.97522454,0.00046826,120]
[419738264,1775345948756,-937383.02477546,0.00046826,120]
[419738265,1775345948781,-100065.966,0.00046826,120]
[419738266,1775345948807,-507.1860445,0.00046826,120]
[419738267,1775345948833,-100065.966,0.00046826,120]
[419738268,1775345948857,-111654.865247,0.00046826,120]
[419738269,1775345948882,-1105.12162,0.00046826,30]
[419738270,1775345948908,-2162866.32031337,0.00046826,30]
[419738271,1775345948934,-151334.71588497,0.00046826,30]
[419738272,1775345948958,-51340.94094118,0.00046826,30]
[419738273,1775345948982,-3961.69226807,0.00046826,30]
[419738274,1775345949007,-25000.0,0.00046826,120]
[419738275,1775345949040,-172.23271012,0.00046826,120]
[419738276,1775345949069,-198.57614458,0.00046826,120]
[419738277,1775345949095,-153.56665583,0.00046826,120]
[419738278,1775345949120,-1774.56071773,0.00046826,120]
[419738279,1775345949146,-813.637476,0.00046826,120]
[419738280,1775345949174,-1523.34481189,0.00046826,120]
[419738281,1775345949199,-180.08229862,0.00046826,120]
[419738282,1775345949226,-261.058205,0.00046826,60]
[419738283,1775345949253,-742.668,0.00046826,120]
[419738284,1775345949278,-198.28822817,0.00046826,30]
[419738285,1775345949305,-1679.65395012,0.00046826,120]
[419738286,1775345949330,-179811.0,0.00046826,60]
[419738287,1775345949356,-276.0,0.00046826,120]
[419738288,1775345949743,-2356.3542691,0.00046826,120]
[419738289,1775345949768,-47891.84,0.00046826,120]
[419738290,1775345949792,-290.33839338,0.00046826,30]
[419738291,1775345949819,-180.03781469,0.00046826,30]
[419738292,1775345949845,-1011.04197693,0.00046826,49]
[419738293,1775345949871,-1640.76331673,0.00046826,30]
[419738294,1775345949897,-153.88262538,0.00046826,120]
[419738295,1775345949922,-705.50477304,0.00046826,120]
[419738296,1775345949945,-158.34894133,0.00046826,120]
[419738297,1775345949970,-3862.4996638,0.00046826,90]
[419738298,1775345949996,-293.670045,0.00046826,120]
[419738299,1775345950021,-301.47339557,0.00046826,120]
[419738300,1775345950048,-106260.12059551,0.00046826,30]
[419738301,1775345950075,-566.0,0.00046826,120]
[419738302,1775345950098,-1096.8052384,0.00046826,30]
[419738303,1775345950122,-1000.0,0.00046826,120]
[419738304,1775345950147,-730.45,0.00046826,120]
[419738305,1775345950171,-8166.87752906,0.00046826,120]
[419738306,1775345950197,-3965.65453757,0.00046826,60]
[419738307,1775345950224,-789.05504505,0.00046826,120]
[419738308,1775345950248,-2945.0,0.00046826,30]
[419738309,1775345950272,-256.83203862,0.00046826,120]
[419738310,1775345950296,-4982306.98150823,0.00046826,120]
[419738311,1775345954988,-3068214.55801826,0.00046826,120]
[419738312,1775345955014,-9197.85,0.00046826,120]
[419738313,1775345955039,-151.80946027,0.00046826,120]
[419738314,1775345955063,-305.53416461,0.00046826,120]
[419738315,1775345955090,-472808.29506159,0.00046826,60]
[419738316,1775345955118,-81979.08524126,0.00046826,45]
[419738317,1775345955142,-178.021467,0.00046826,120]
[419738318,1775345955166,-162.60032759,0.00046826,120]
[419738319,1775345955190,-598.1449997,0.00046826,120]
[419738320,1775345955214,-455887.74074188,0.00046826,60]
[419738321,1775345955239,-578.46688,0.00046826,120]
[419738322,1775345955263,-2203.54834253,0.00046826,30]
[419738323,1775345955287,-1011498.0,0.00046826,30]
[419738324,1775345955313,-419.6617132,0.00046826,120]
[419738325,1775345955338,-371.06950069,0.00046826,120]
[419738326,1775345955363,-26713.15833967,0.00046826,31]
[419738327,1775345955388,-230.0,0.00046826,60]
[419738328,1775345955412,-222.50289781,0.00046826,30]
[419738329,1775345955436,-200.0,0.00046826,30]
[419738330,1775345955461,-300.0,0.00046826,30]
[419738331,1775345955484,-300.0,0.00046826,30]
[419738332,1775345955507,-300.0,0.00046826,30]
[419738333,1775345955531,-300.0,0.00046826,30]
[419738334,1775345955554,-300.0,0.00046826,30]
[419738335,1775345955579,-300.0,0.00046826,30]
[419738336,1775345955603,-300.0,0.00046826,30]
[419738337,1775345955629,-300.0,0.00046826,30]
[419738338,1775345955653,-300.0,0.00046826,30]
[419738339,1775345955678,-300.0,0.00046826,30]
[419738340,1775345955702,-300.0,0.00046826,30]
[419738341,1775345955728,-300.0,0.00046826,30]
[419738342,1775345955752,-300.0,0.00046826,30]
[419738343,1775345955778,-300.0,0.00046826,30]
[419738344,1775345955803,-300.0,0.00046826,30]
[419738345,1775345955827,-245.56392782,0.00046826,120]
[419738346,1775345955850,-3545.88,0.00046826,120]
[419738347,1775345955874,-3189.22483319,0.00046826,120]
[419738348,1775345955898,-2059.96804795,0.00046826,120]
[419738349,1775345955924,-1140.82407735,0.00046826,120]
[419738350,1775345955948,-7430.49110881,0.00046826,120]
[419738351,1775345955972,-5168.5642692,0.00046826,60]
[419738352,1775345955996,-1547975.84932263,0.00046826,120]
[419738353,1775345956020,-3075.13002566,0.00046826,120]
[419738354,1775345956047,-1101.54151238,0.00046826,120]
[419738355,1775345956072,-1555.34,0.00046826,120]
[419738356,1775345956101,-50000.0,0.00046826,54]
[419738357,1775345956128,-50000.0,0.00046826,55]
[419738358,1775345956157,-50000.0,0.00046826,56]
[419738359,1775345956184,-50000.0,0.00046826,57]
[419738360,1775345956212,-50000.0,0.00046826,58]
[419738361,1775345956239,-50000.0,0.00046826,59]
[419738362,1775345956266,-50000.0,0.00046826,60]
[419738363,1775345956295,-50000.0,0.00046826,61]
[419738364,1775345956321,-150.45,0.00046826,120]
[419738365,1775345956348,-1371759.0,0.00046826,120]
[419738366,1775345956374,-515182.12571895,0.00046826,120]
[419738367,1775345980276,-2373778.33064708,0.00046826,120]
[419738368,1775345980303,-2000000.0,0.00046826,120]
[419738369,1775345980330,-2005.18,0.00046826,120]
[419738370,1775345980356,-4624216.48935292,0.00046826,120]
[419738374,1775346557096,166.0,0.00016101,120]
[419738375,1775346570917,166.0,0.000161,120]
[419738376,1775346583453,222.0,0.00016101,120]
[419738385,1775346631564,-222.0,0.0001167,2]
[419738386,1775346631574,-1200.0,0.0001167,2]
[419738387,1775346631583,-300.0,0.0001167,2]
[419738388,1775346631592,-300.0,0.0001167,2]
[419738389,1775346631603,-252.53960914,0.0001167,2]
[419738390,1775346631613,-600.0,0.0001167,2]
[419738391,1775346631623,-600.0,0.0001167,2]
[419738392,1775346631633,-10000.0,0.00011671,2]
[419738393,1775346631643,-300.0,0.00011899,2]
[419738394,1775346631652,-413.26808823,0.00011899,2]
[419738395,1775346631661,-420.0,0.00012815,2]
[419738396,1775346631671,-1680.0,0.00012837,2]
[419738397,1775346631681,-600.0,0.00012837,2]
[419738398,1775346631691,-517.49322048,0.00012837,2]
[419738399,1775346631700,-600.0,0.00012837,2]
[419738400,1775346631710,-193.0,0.00012837,2]
[419738401,1775346631719,-300.0,0.00012837,2]
[419738402,1775346631729,-250.0,0.00012837,2]
[419738403,1775346631739,-250.0,0.00013,2]
[419738404,1775346631748,-513.0,0.00013111,2]
[419738405,1775346631758,-150.99,0.00013111,2]
[419738406,1775346631768,-299.99,0.00013111,2]
[419738407,1775346631777,-230.72,0.00013138,2]
[419738409,1775346631787,-151.36,0.0001329,2]
[419738411,1775346631796,-155.0,0.0001329,2]
[419738413,1775346631805,-2000.0,0.00013391,2]
[419738414,1775346631815,-150.0,0.00013697,2]
[419738416,1775346631825,-155.0,0.00013697,2]
[419738418,1775346631834,-284.33,0.00013698,2]
[419738421,1775346631844,-500.0,0.00013698,2]
[419738423,1775346631853,-500.0,0.00013698,2]
[419738425,1775346631863,-500.0,0.00013698,2]
[419738427,1775346631873,-500.0,0.00013698,2]
[419738429,1775346631882,-500.0,0.00013698,2]
[419738431,1775346631891,-500.0,0.00013698,2]
[419738433,1775346631901,-500.0,0.00013698,2]
[419738434,1775346631910,-500.0,0.00013698,2]
[419738436,1775346631920,-500.0,0.00013698,2]
[419738437,1775346631929,-234.39719846,0.00013698,2]
[419738438,1775346631938,-500.0,0.00013698,2]
[419738439,1775346631948,-500.0,0.00013698,2]
[419738440,1775346631957,-500.0,0.00013698,2]
[419738441,1775346631966,-500.0,0.00013698,2]
[419738443,1775346631976,-500.0,0.00013698,2]
[419738445,1775346631985,-500.0,0.00013698,2]
[419738447,1775346631994,-500.0,0.00013698,2]
[419738449,1775346632003,-500.0,0.00013698,2]
[419738451,1775346632013,-500.0,0.00013698,2]
[419738453,1775346632022,-500.0,0.00013698,2]
[419738455,1775346632032,-500.0,0.00013698,2]
[419738457,1775346632042,-500.0,0.00013698,2]
[419738458,1775346632051,-500.0,0.00013698,2]
[419738459,1775346632060,-500.0,0.00013698,2]
[419738460,1775346632070,-500.0,0.00013698,2]
[419738461,1775346632079,-500.0,0.00013698,2]
[419738462,1775346632088,-500.0,0.00013698,2]
[419738463,1775346632098,-500.0,0.00013698,2]
[419738464,1775346632107,-225.42319663,0.00013698,2]
[419738465,1775346632116,-500.0,0.00013698,2]
[419738466,1775346632125,-636.1368325,0.00013698,2]
[419738467,1775346632135,-500.0,0.00013698,2]
[419738468,1775346632144,-500.0,0.00013698,2]
[419738469,1775346632153,-500.0,0.00013698,2]
[419738470,1775346632163,-500.0,0.00013698,2]
[419738471,1775346632173,-500.0,0.00013698,2]
[419738472,1775346632183,-500.0,0.00013698,2]
[419738473,1775346632192,-189.99766077,0.00013698,2]
[419738474,1775346632201,-150.0,0.00013699,2]
[419738475,1775346632211,-150.0,0.00013699,2]
[419738476,1775346632220,-150.0,0.00013699,2]
[419738477,1775346632230,-166.66,0.00013699,2]
[419738478,1775346632239,-200.0,0.000139,3]
[419738479,1775346632248,-200.0,0.000139,3]
[419738480,1775346632258,-500.0,0.00013943,2]
[419738481,1775346632267,-166.66,0.00013957,2]
[419738482,1775346632276,-284.33,0.00013972,2]
[419738483,1775346632286,-150.0,0.00013973,2]
[419738484,1775346632296,-150.0,0.00013973,2]
[419738485,1775346632306,-150.0,0.00013973,2]
[419738486,1775346632315,-218.0609158,0.00014039,2]
[419738487,1775346632324,-150.0,0.0001405,2]
[419738488,1775346632334,-270.46,0.00014067,2]
[419738489,1775346632343,-587.0,0.00014073,2]
[419738490,1775346632353,-2351.0,0.00014121,2]
[419738491,1775346632362,-150.0,0.00014139,2]
[419738492,1775346632372,-200.0,0.00014139,2]
[419738493,1775346632382,-150.0,0.0001415,2]
[419738494,1775346632391,-166.66,0.00014215,2]
[419738495,1775346632400,-500.0,0.00014236,2]
[419738496,1775346632410,-284.34,0.00014246,2]
[419738497,1775346632419,-150.0,0.00014247,2]
[419738498,1775346632428,-168.379006,0.00014336,7]
[419738499,1775346632437,-176.287952,0.00014336,7]